fUSD/lending_fUSD_20250322
["ID","MTS","AMOUNT","RATE_DAILY","PERIOD"]
[356523994,1742611844562,-1292.33,0.00046575,120]
[356523995,1742611844571,-284.90655135,0.00046575,120]
[356523996,1742611844581,-500.0,0.00046575,120]
[356523997,1742611844591,-1715.7,0.00046575,120]
[356523998,1742611844601,-500.0,0.00046575,120]
[356523999,1742611844611,-2698.42,0.00046575,120]
[356524000,1742611844621,-537.61,0.00046575,120]
[356524001,1742611844632,-500.0,0.00046575,120]
[356524002,1742611844646,-500.0,0.00046575,120]
[356524003,1742611844655,-500.0,0.00046575,120]
[356524004,1742611844665,-500.0,0.00046575,120]
[356524005,1742611844674,-4757.37,0.00046575,120]
[356524006,1742611844685,-708.43,0.00046575,120]
[356524007,1742611844695,-3087.06,0.00046575,120]
[356524008,1742611844704,-522.97,0.00046575,120]
[356524009,1742611844714,-500.0,0.00046575,120]
[356524010,1742611844723,-500.0,0.00046575,120]
[356524011,1742611844733,-1384.68,0.00046575,120]
[356524012,1742611844742,-500.0,0.00046575,120]
[356524013,1742611844752,-822.81,0.00046575,120]
[356524014,1742611844762,-500.0,0.00046575,120]
[356524015,1742611844771,-500.0,0.00046575,120]
[356524016,1742611844781,-500.0,0.00046575,120]
[356524017,1742611844791,-5937.0,0.00046575,120]
[356524018,1742611844801,-500.0,0.00046575,120]
[356524019,1742611844811,-2870.35,0.00046575,120]
[356524020,1742611844821,-500.0,0.00046575,120]
[356524021,1742611844831,-708.18,0.00046575,120]
[356524022,1742611844841,-504.76251034,0.00046575,120]
[356524023,1742611844850,-2486.82,0.00046575,120]
[356524024,1742611844860,-599.77,0.00046575,120]
[356524025,1742611844870,-500.0,0.00046575,120]
[356524026,1742611844880,-898.15,0.00046575,120]
[356524027,1742611844889,-833.62,0.00046575,120]
[356524028,1742611844899,-856.03,0.00046575,120]
[356524029,1742611844909,-524.54128018,0.00046575,120]
[356524030,1742611844919,-740.24,0.00046575,120]
[356524031,1742611844929,-500.0,0.00046575,120]
[356524032,1742611844938,-868.71,0.00046575,120]
[356524033,1742611844948,-597.43,0.00046575,120]
[356524034,1742611844959,-49688.22787547,0.00046575,30]
[356524035,1742611844969,-221.90707383,0.00046575,30]
[356524036,1742611844978,-170.64322213,0.00046575,30]
[356524037,1742611844988,-500.0,0.00046578,120]
[356524039,1742611845210,-150.0,0.00046581,30]
[356524040,1742611845220,-1270.4,0.0004659,120]
[356524041,1742611845229,-150.0,0.00046591,30]
[356524042,1742611845238,-150.0,0.00046592,30]
[356524044,1742611845247,-150.0,0.00046597,30]
[356524046,1742611845256,-900.0,0.000466,17]
[356524048,1742611845266,-150.0,0.00046602,60]
[356524050,1742611845275,-500.0,0.00046602,60]
[356524052,1742611845284,-737.35792348,0.00046602,60]
[356524054,1742611845294,-500.0,0.00046602,60]
[356524057,1742611845303,-500.0,0.00046602,60]
[356524059,1742611845313,-150.0,0.00046602,60]
[356524061,1742611845322,-150.0,0.00046613,30]
[356524063,1742611845331,-150.0,0.00046613,30]
[356524065,1742611845340,-152.08,0.00046625,2]
[356524066,1742611845351,-150.0,0.0004663,30]
[356524067,1742611845360,-207.046157,0.0004663,60]
[356524068,1742611845369,-993.72016423,0.0004663,60]
[356524069,1742611845378,-500.0,0.0004663,60]
[356524070,1742611845387,-814.73677951,0.0004663,60]
[356524071,1742611845397,-150.0,0.0004663,60]
[356524072,1742611845406,-150.0,0.00046635,30]
[356524073,1742611845415,-150.0,0.00046636,30]
[356524074,1742611845424,-150.0,0.00046646,30]
[356524075,1742611845434,-588.24234554,0.00046651,15]
[356524076,1742611845443,-150.0,0.00046656,30]
[356524077,1742611845453,-500.0,0.00046657,60]
[356524078,1742611845463,-150.0,0.00046657,60]
[356524079,1742611845472,-150.0,0.00046662,30]
[356524080,1742611845482,-150.0,0.00046678,30]
[356524081,1742611845491,-150.0,0.00046678,30]
[356524082,1742611845501,-150.0,0.0004668,30]
[356524083,1742611845511,-867.64115741,0.00046685,60]
[356524084,1742611845521,-150.0,0.00046685,60]
[356524085,1742611845531,-150.0,0.00046695,30]
[356524086,1742611845540,-150.0,0.000467,30]
[356524087,1742611845550,-3207.13,0.000467,2]
[356524088,1742611845559,-1400.0,0.000467,17]
[356524089,1742611845569,-187.71345462,0.00046705,15]
[356524090,1742611845580,-150.0,0.00046709,30]
[356524091,1742611845589,-150.0,0.00046711,30]
[356524092,1742611845598,-247.56565775,0.00046712,60]
[356524093,1742611845607,-150.0,0.00046721,30]
[356524094,1742611845616,-150.0,0.00046724,30]
[356524095,1742611845625,-150.0,0.00046727,30]
[356524096,1742611845637,-150.0,0.00046733,120]
[356524097,1742611845646,-150.0,0.00046743,30]
[356524098,1742611845655,-150.0,0.00046744,30]
[356524099,1742611845665,-261.15716022,0.00046749,120]
[356524100,1742611845675,-150.0,0.0004676,30]
[356524101,1742611845684,-150.0,0.00046765,30]
[356524102,1742611845693,-150.0,0.00046768,30]
[356524103,1742611845703,-150.0,0.00046776,30]
[356524104,1742611845715,-150.0,0.00046786,30]
[356524105,1742611845725,-164.51371916,0.00046788,120]
[356524106,1742611845734,-160.57,0.00046792,2]
[356524107,1742611845745,-150.0,0.00046793,30]
[356524108,1742611845755,-1900.0,0.000468,17]
[356524109,1742611845764,-150.0,0.00046808,30]
[356524110,1742611845773,-150.0,0.00046809,30]
[356524111,1742611845783,-150.0,0.00046812,30]
[356524112,1742611845793,-150.0,0.00046825,30]
[356524113,1742611845803,-588.24234554,0.00046828,15]
[356524114,1742611845813,-150.0,0.0004683,30]
[356524115,1742611845823,-150.0,0.00046842,30]
[356524116,1742611845832,-525.1590397,0.00046848,120]
[356524117,1742611845843,-1901.45,0.00046848,120]
[356524118,1742611845853,-1901.45,0.00046848,120]
[356524119,1742611845864,-1901.45,0.00046848,120]
[356524120,1742611845874,-500.0,0.00046848,120]
[356524121,1742611845884,-513.84568682,0.00046848,120]
[356524123,1742611845894,-500.0,0.00046848,120]
[356524124,1742611845905,-500.0,0.00046848,120]
[356524125,1742611845915,-500.0,0.00046848,120]
[356524126,1742611845926,-1236.79,0.00046848,120]
[356524127,1742611845936,-1236.79,0.00046848,120]
[356524128,1742611845945,-1236.79,0.00046848,120]
[356524129,1742611845954,-1270.4,0.00046848,120]
[356524130,1742611845964,-1270.4,0.00046848,120]
[356524131,1742611845974,-1270.4,0.00046848,120]
[356524132,1742611845983,-500.0,0.00046849,120]
[356524134,1742611845993,-1197.530458,0.00046849,120]
[356524135,1742611846003,-1550.260704,0.00046849,120]
[356524136,1742611846013,-500.0,0.00046849,2]
[356524137,1742611846022,-500.0,0.00046849,2]
[356524138,1742611846032,-500.0,0.00046849,120]
[356524139,1742611846041,-619.76292031,0.00046849,120]
[356524140,1742611846051,-500.0,0.00046849,120]
[356524141,1742611846060,-500.0,0.00046849,5]
[356524142,1742611846069,-477.34921341,0.00046849,120]
[356524143,1742611846081,-595.37339567,0.00046849,2]
[356524144,1742611846090,-502.35793349,0.00046849,3]
[356524145,1742611846100,-500.0,0.00046849,120]
[356524146,1742611846110,-500.0,0.00046849,120]
[356524147,1742611846119,-558.63768177,0.00046849,120]
[356524148,1742611846128,-500.0,0.00046849,120]
[356524149,1742611846138,-1270.71,0.00046849,120]
[356524150,1742611846147,-517.86,0.00046849,120]
[356524151,1742611846156,-500.0,0.00046849,120]
[356524152,1742611846165,-500.0,0.00046849,120]
[356524153,1742611846176,-500.0,0.00046849,120]
[356524154,1742611846185,-637.23795495,0.00046849,120]
[356524155,1742611846195,-500.0,0.00046849,120]
[356524156,1742611846205,-601.17493185,0.00046849,120]
[356524157,1742611846214,-500.0,0.00046849,120]
[356524158,1742611846223,-500.0,0.00046849,120]
[356524159,1742611846232,-500.0,0.00046849,120]
[356524160,1742611846242,-500.0,0.00046849,120]
[356524161,1742611846251,-554.85,0.00046849,120]
[356524162,1742611846260,-500.0,0.00046849,120]
[356524163,1742611846270,-500.0,0.00046849,120]
[356524164,1742611846279,-500.0,0.00046849,120]
[356524165,1742611846289,-500.0,0.00046849,120]
[356524166,1742611846298,-500.0,0.00046849,120]
[356524167,1742611846307,-500.0,0.00046849,120]
[356524168,1742611846317,-500.0,0.00046849,120]
[356524169,1742611846327,-500.0,0.00046849,120]
[356524170,1742611846336,-500.0,0.00046849,120]
[356524171,1742611846345,-500.0,0.00046849,120]
[356524172,1742611846354,-500.0,0.00046849,120]
[356524173,1742611846364,-500.0,0.00046849,120]
[356524174,1742611846373,-500.0,0.00046849,120]
[356524175,1742611846382,-500.0,0.00046849,120]
[356524176,1742611846392,-500.0,0.00046849,120]
[356524177,1742611846402,-601.47,0.00046849,120]
[356524178,1742611846412,-500.0,0.00046849,120]
[356524179,1742611846422,-358.52403625,0.00046849,120]
[356524180,1742611846432,-500.0,0.00046849,120]
[356524181,1742611846442,-500.0,0.00046849,20]
[356524182,1742611846451,-500.0,0.00046849,120]
[356524183,1742611846461,-500.0,0.00046849,120]
[356524184,1742611846470,-785.48,0.00046849,120]
[356524185,1742611846479,-923.46,0.00046849,120]
[356524186,1742611846488,-208.27010303,0.00046849,120]
[356524187,1742611846498,-1117.19,0.00046849,120]
[356524188,1742611846508,-500.0,0.00046849,120]
[356524189,1742611846518,-560.12,0.00046849,120]
[356524190,1742611846528,-500.0,0.00046849,120]
[356524191,1742611846538,-928.89,0.00046849,120]
[356524192,1742611846547,-500.0,0.00046849,120]
[356524193,1742611846557,-500.0,0.00046849,120]
[356524194,1742611846566,-500.0,0.00046849,120]
[356524195,1742611846575,-500.0,0.00046849,120]
[356524196,1742611846586,-500.0,0.00046849,120]
[356524197,1742611846598,-500.0,0.00046849,120]
[356524198,1742611846610,-500.0,0.00046849,120]
[356524199,1742611846620,-500.0,0.00046849,120]
[356524200,1742611846629,-500.0,0.00046849,120]
[356524201,1742611846642,-797.61,0.00046849,120]
[356524202,1742611846651,-500.0,0.00046849,120]
[356524203,1742611846660,-619.01677476,0.00046849,120]
[356524204,1742611846669,-500.0,0.00046849,120]
[356524205,1742611846679,-500.0,0.00046849,120]
[356524206,1742611846688,-500.0,0.00046849,120]
[356524207,1742611846698,-573.08006081,0.00046849,120]
[356524208,1742611846707,-500.0,0.00046849,120]
[356524209,1742611846718,-500.0,0.00046849,120]
[356524210,1742611846728,-500.0,0.00046849,120]
[356524211,1742611846737,-500.0,0.00046849,120]
[356524212,1742611846746,-1500.0,0.00046849,120]
[356524213,1742611846756,-500.0,0.00046849,120]
[356524214,1742611846765,-500.0,0.00046849,120]
[356524215,1742611846774,-595.94,0.00046849,120]
[356524216,1742611846783,-500.0,0.00046849,120]
[356524217,1742611846793,-500.0,0.00046849,120]
[356524218,1742611846802,-500.0,0.00046849,120]
[356524219,1742611846811,-500.0,0.00046849,120]
[356524220,1742611846820,-500.0,0.00046849,120]
[356524221,1742611846830,-500.0,0.00046849,120]
[356524222,1742611846840,-529.08,0.00046849,120]
[356524223,1742611846849,-500.0,0.00046849,120]
[356524224,1742611846858,-500.0,0.00046849,120]
[356524225,1742611846867,-731.71,0.00046849,120]
[356524226,1742611846876,-500.0,0.00046849,120]
[356524227,1742611846885,-286.93972665,0.00046849,120]
[356524228,1742611846895,-500.0,0.00046849,120]
[356524229,1742611846904,-500.0,0.00046849,120]
[356524230,1742611846915,-500.0,0.00046849,120]
[356524231,1742611846925,-633.4,0.00046849,120]
[356524232,1742611846934,-500.0,0.00046849,120]
[356524233,1742611846944,-500.0,0.00046849,120]
[356524234,1742611846954,-755.42,0.00046849,120]
[356524235,1742611846963,-500.0,0.00046849,120]
[356524236,1742611846973,-500.0,0.00046849,120]
[356524237,1742611846982,-592.08,0.00046849,120]
[356524238,1742611846993,-500.0,0.00046849,120]
[356524239,1742611847003,-500.0,0.00046849,120]
[356524240,1742611847012,-500.0,0.00046849,120]
[356524241,1742611847025,-500.0,0.00046849,120]
[356524242,1742611847035,-500.0,0.00046849,120]
[356524243,1742611847044,-500.0,0.00046849,120]
[356524244,1742611847053,-500.0,0.00046849,120]
[356524245,1742611847062,-500.0,0.00046849,120]
[356524246,1742611847072,-500.0,0.00046849,120]
[356524247,1742611847081,-500.0,0.00046849,120]
[356524248,1742611847091,-500.0,0.00046849,120]
[356524249,1742611847100,-500.0,0.00046849,120]
[356524250,1742611847110,-500.0,0.00046849,120]
[356524251,1742611847119,-500.0,0.00046849,120]
[356524252,1742611847129,-597.62598314,0.00046849,120]
[356524253,1742611847138,-500.0,0.00046849,120]
[356524254,1742611847148,-500.0,0.00046849,120]
[356524255,1742611847158,-500.0,0.00046849,120]
[356524256,1742611847167,-500.0,0.00046849,120]
[356524257,1742611847176,-1323.76,0.00046849,120]
[356524258,1742611847186,-536.96,0.00046849,120]
[356524259,1742611847195,-500.0,0.00046849,120]
[356524260,1742611847205,-500.0,0.00046849,120]
[356524261,1742611847214,-500.0,0.00046849,120]
[356524262,1742611847223,-500.0,0.00046849,120]
[356524263,1742611847232,-500.0,0.00046849,120]
[356524264,1742611847242,-500.0,0.00046849,120]
[356524265,1742611847251,-500.0,0.00046849,120]
[356524266,1742611847261,-500.0,0.00046849,120]
[356524267,1742611847271,-526.35004016,0.00046849,120]
[356524268,1742611847281,-500.0,0.00046849,120]
[356524269,1742611847290,-500.0,0.00046849,120]
[356524270,1742611847300,-500.0,0.00046849,120]
[356524271,1742611847310,-500.0,0.00046849,120]
[356524272,1742611847319,-500.0,0.00046849,120]
[356524273,1742611847329,-521.07305964,0.00046849,120]
[356524274,1742611847338,-500.0,0.00046849,120]
[356524275,1742611847348,-500.0,0.00046849,120]
[356524276,1742611847357,-358.95685484,0.00046849,120]
[356524277,1742611847367,-691.27,0.00046849,120]
[356524278,1742611847376,-500.0,0.00046849,120]
[356524279,1742611847386,-1086.28,0.00046849,120]
[356524280,1742611847395,-540.33234339,0.00046849,120]
[356524281,1742611847405,-500.0,0.00046849,120]
[356524282,1742611847415,-667.22,0.00046849,120]
[356524283,1742611847425,-522.12206477,0.00046849,120]
[356524284,1742611847434,-500.0,0.00046849,120]
[356524285,1742611847444,-500.0,0.00046849,120]
[356524286,1742611847454,-500.0,0.00046849,120]
[356524287,1742611847464,-500.0,0.00046849,120]
[356524288,1742611847474,-500.0,0.00046849,120]
[356524289,1742611847547,-533.77040033,0.00046849,120]
[356524290,1742611847556,-500.0,0.00046849,120]
[356524291,1742611847566,-534.88705445,0.00046849,120]
[356524292,1742611847575,-1002.7,0.00046849,120]
[356524293,1742611847586,-1444.83,0.00046849,120]
[356524294,1742611847596,-500.0,0.00046849,120]
[356524295,1742611847606,-500.0,0.00046849,120]
[356524296,1742611847616,-518.60748897,0.00046849,120]
[356524297,1742611847626,-500.0,0.00046849,120]
[356524298,1742611847637,-500.0,0.00046849,120]
[356524299,1742611847647,-627.12917735,0.00046849,120]
[356524300,1742611847659,-500.0,0.00046849,120]
[356524301,1742611847668,-500.0,0.00046849,120]
[356524302,1742611847678,-500.0,0.00046849,120]
[356524303,1742611847687,-534.89367286,0.00046849,120]
[356524304,1742611847696,-500.0,0.00046849,120]
[356524305,1742611847707,-500.0,0.00046849,120]
[356524306,1742611847717,-500.0,0.00046849,120]
[356524307,1742611847727,-500.0,0.00046849,120]
[356524308,1742611847736,-500.0,0.00046849,120]
[356524309,1742611847745,-550.23,0.00046849,120]
[356524310,1742611847755,-500.0,0.00046849,120]
[356524311,1742611847764,-500.0,0.00046849,120]
[356524312,1742611847773,-542.45984911,0.00046849,120]
[356524313,1742611847782,-464.72526069,0.00046849,120]
[356524314,1742611847791,-500.0,0.00046849,120]
[356524315,1742611847801,-500.0,0.00046849,120]
[356524316,1742611847810,-500.0,0.00046849,120]
[356524317,1742611847820,-500.0,0.00046849,120]
[356524318,1742611847829,-500.0,0.00046849,120]
[356524319,1742611847840,-500.0,0.00046849,120]
[356524320,1742611847850,-500.0,0.00046849,120]
[356524321,1742611847859,-500.0,0.00046849,120]
[356524322,1742611847869,-500.0,0.00046849,120]
[356524323,1742611847878,-600.22,0.00046849,120]
[356524324,1742611847888,-500.0,0.00046849,120]
[356524325,1742611847897,-768.09,0.00046849,120]
[356524326,1742611847907,-521.76578765,0.00046849,120]
[356524327,1742611847920,-620.55,0.00046849,120]
[356524328,1742611847929,-500.0,0.00046849,120]
[356524329,1742611847941,-613.07,0.00046849,120]
[356524330,1742611847955,-665.01,0.00046849,120]
[356524331,1742611847964,-500.0,0.00046849,120]
[356524332,1742611847974,-500.0,0.00046849,120]
[356524333,1742611847983,-771.78,0.00046849,120]
[356524334,1742611847993,-532.32218472,0.00046849,120]
[356524335,1742611848003,-611.22,0.00046849,120]
[356524336,1742611848013,-577.96,0.00046849,120]
[356524337,1742611848023,-500.0,0.00046849,120]
[356524338,1742611848032,-500.0,0.00046849,120]
[356524339,1742611848042,-500.0,0.00046849,120]
[356524340,1742611848052,-500.0,0.00046849,120]
[356524341,1742611848062,-500.0,0.00046849,120]
[356524342,1742611848071,-500.0,0.00046849,120]
[356524343,1742611848081,-2385.16,0.00046849,120]
[356524344,1742611848091,-500.0,0.00046849,120]
[356524345,1742611848101,-346.9300951,0.00046849,120]
[356524346,1742611848110,-500.0,0.00046849,120]
[356524347,1742611848120,-500.0,0.00046849,120]
[356524348,1742611848130,-500.0,0.00046849,120]
[356524349,1742611848140,-177.58162278,0.00046849,120]
[356524350,1742611848150,-500.0,0.00046849,120]
[356524351,1742611848159,-500.0,0.00046849,120]
[356524352,1742611848169,-500.0,0.00046849,120]
[356524353,1742611848179,-500.0,0.00046849,120]
[356524354,1742611848188,-1257.95,0.00046849,120]
[356524355,1742611848197,-500.0,0.00046849,120]
[356524356,1742611848206,-510.52675655,0.00046849,120]
[356524357,1742611848216,-500.0,0.00046849,120]
[356524358,1742611848225,-500.0,0.00046849,120]
[356524359,1742611848234,-500.0,0.00046849,120]
[356524360,1742611848243,-906.81,0.00046849,120]
[356524361,1742611848253,-500.0,0.00046849,120]
[356524362,1742611848262,-500.0,0.00046849,120]
[356524363,1742611848273,-500.0,0.00046849,120]
[356524364,1742611848282,-500.0,0.00046849,120]
[356524365,1742611848292,-500.0,0.00046849,120]
[356524366,1742611848301,-1097.1,0.00046849,2]
[356524367,1742611848310,-572.84,0.00046849,120]
[356524368,1742611848319,-500.0,0.00046849,120]
[356524369,1742611848329,-630.91,0.00046849,120]
[356524370,1742611848338,-500.0,0.00046849,120]
[356524371,1742611848348,-500.0,0.00046849,60]
[356524372,1742611848357,-500.0,0.00046849,120]
[356524373,1742611848367,-500.0,0.00046849,120]
[356524374,1742611848376,-843.78,0.00046849,120]
[356524375,1742611848385,-500.0,0.00046849,120]
[356524376,1742611848394,-500.0,0.00046849,120]
[356524377,1742611848403,-900.29,0.00046849,120]
[356524378,1742611848412,-529.93,0.00046849,120]
[356524379,1742611848421,-1058.44,0.00046849,120]
[356524380,1742611848431,-979.29,0.00046849,120]
[356524381,1742611848440,-344.44321883,0.00046849,120]
[356524382,1742611848449,-500.0,0.00046849,120]
[356524383,1742611848459,-500.0,0.00046849,120]
[356524384,1742611848469,-518.23358849,0.00046849,120]
[356524385,1742611848479,-890.71,0.00046849,120]
[356524386,1742611848489,-500.0,0.00046849,120]
[356524387,1742611848499,-500.0,0.00046849,120]
[356524388,1742611848509,-500.0,0.00046849,120]
[356524389,1742611848518,-180.19667545,0.00046849,120]
[356524390,1742611848527,-683.66,0.00046849,120]
[356524391,1742611848536,-500.0,0.00046849,120]
[356524392,1742611848546,-575.37960019,0.00046849,120]
[356524393,1742611848556,-547.04945742,0.00046849,120]
[356524394,1742611848566,-1798.51,0.00046849,120]
[356524395,1742611848576,-500.0,0.00046849,120]
[356524396,1742611848585,-313.8140373,0.00046849,12]
[356524397,1742611848594,-500.0,0.00046849,120]
[356524398,1742611848604,-500.0,0.00046849,120]
[356524399,1742611848613,-527.34482621,0.00046849,120]
[356524400,1742611848622,-521.22295989,0.00046849,120]
[356524401,1742611848632,-2572.28,0.00046849,120]
[356524402,1742611848645,-511.37,0.00046849,120]
[356524403,1742611848655,-500.0,0.00046849,120]
[356524404,1742611848664,-767.88,0.00046849,120]
[356524405,1742611848675,-541.72796807,0.00046849,120]
[356524406,1742611848684,-500.0,0.00046849,120]
[356524407,1742611848694,-497.04386652,0.00046849,120]
[356524408,1742611848703,-500.0,0.00046849,120]
[356524409,1742611848712,-668.07,0.00046849,120]
[356524410,1742611848722,-500.0,0.00046849,120]
[356524411,1742611848732,-500.0,0.00046849,2]
[356524412,1742611848742,-500.0,0.00046849,120]
[356524413,1742611848751,-500.0,0.00046849,120]
[356524414,1742611848760,-527.23391284,0.00046849,120]
[356524415,1742611848769,-500.0,0.00046849,120]
[356524416,1742611848779,-500.0,0.00046849,120]
[356524417,1742611848788,-531.9696445,0.00046849,120]
[356524418,1742611848798,-1307.92,0.00046849,120]
[356524419,1742611848817,-500.0,0.00046849,120]
[356524420,1742611848826,-500.0,0.00046849,120]
[356524421,1742611848836,-510.47,0.00046849,120]
[356524422,1742611848845,-500.0,0.00046849,120]
[356524423,1742611848854,-500.0,0.00046849,120]
[356524424,1742611848863,-829.44,0.00046849,120]
[356524425,1742611848872,-1048.95,0.00046849,120]
[356524426,1742611848882,-500.0,0.00046849,120]
[356524427,1742611848891,-500.0,0.00046849,120]
[356524428,1742611848900,-954.33,0.00046849,120]
[356524429,1742611848909,-451.68065088,0.00046849,120]
[356524430,1742611848918,-500.0,0.00046849,120]
[356524431,1742611848929,-500.0,0.00046849,120]
[356524432,1742611848941,-506.08,0.00046849,120]
[356524433,1742611848951,-500.0,0.00046849,120]
[356524434,1742611848960,-500.0,0.00046849,120]
[356524435,1742611848970,-635.92970389,0.00046849,120]
[356524436,1742611848979,-500.0,0.00046849,120]
[356524437,1742611848989,-500.0,0.00046849,120]
[356524438,1742611848999,-640.06963978,0.00046849,120]
[356524439,1742611849008,-675.22,0.00046849,120]
[356524440,1742611849018,-2676.07,0.00046849,120]
[356524441,1742611849028,-959.43,0.00046849,120]
[356524442,1742611849037,-500.0,0.00046849,120]
[356524443,1742611849047,-500.0,0.00046849,120]
[356524444,1742611849055,-500.0,0.00046849,120]
[356524445,1742611849065,-500.0,0.00046849,120]
[356524446,1742611849075,-500.0,0.00046849,120]
[356524447,1742611849085,-500.0,0.00046849,120]
[356524448,1742611849094,-651.92,0.00046849,120]
[356524449,1742611849103,-500.0,0.00046849,120]
[356524450,1742611849113,-500.0,0.00046849,120]
[356524451,1742611849122,-500.0,0.00046849,120]
[356524452,1742611849132,-500.0,0.00046849,120]
[356524453,1742611849141,-500.0,0.00046849,120]
[356524454,1742611849150,-500.0,0.00046849,120]
[356524455,1742611849159,-500.0,0.00046849,120]
[356524456,1742611849169,-500.0,0.00046849,30]
[356524457,1742611849179,-500.0,0.00046849,120]
[356524458,1742611849189,-500.0,0.00046849,120]
[356524459,1742611849198,-500.0,0.00046849,120]
[356524460,1742611849208,-500.0,0.00046849,120]
[356524461,1742611849218,-500.0,0.00046849,120]
[356524462,1742611849227,-500.0,0.00046849,120]
[356524463,1742611849236,-2903.24,0.00046849,120]
[356524464,1742611849246,-500.0,0.00046849,120]
[356524465,1742611849255,-500.0,0.00046849,120]
[356524466,1742611849264,-500.0,0.00046849,120]
[356524467,1742611849273,-583.4,0.00046849,120]
[356524468,1742611849283,-500.0,0.00046849,120]
[356524469,1742611849292,-500.0,0.00046849,30]
[356524470,1742611849301,-500.0,0.00046849,120]
[356524471,1742611849312,-500.0,0.00046849,120]
[356524472,1742611849322,-1012.44,0.00046849,120]
[356524473,1742611849332,-550.0404356,0.00046849,120]
[356524474,1742611849341,-500.0,0.00046849,120]
[356524475,1742611849351,-150.48543089,0.00046849,120]
[356524476,1742611849360,-1541.07,0.00046849,7]
[356524477,1742611849370,-500.0,0.00046849,120]
[356524478,1742611849379,-500.0,0.00046849,120]
[356524479,1742611849389,-500.0,0.00046849,120]
[356524480,1742611849398,-500.0,0.00046849,120]
[356524481,1742611849407,-529.38951892,0.00046849,120]
[356524482,1742611849416,-500.0,0.00046849,120]
[356524483,1742611849427,-500.0,0.00046849,120]
[356524484,1742611849436,-500.0,0.00046849,120]
[356524485,1742611849445,-500.0,0.00046849,120]
[356524486,1742611849455,-598.31,0.00046849,120]
[356524487,1742611849465,-500.0,0.00046849,120]
[356524488,1742611849475,-988.34,0.00046849,120]
[356524489,1742611849484,-500.0,0.00046849,120]
[356524490,1742611849493,-500.0,0.00046849,120]
[356524491,1742611849503,-531.66,0.00046849,120]
[356524492,1742611849512,-500.0,0.00046849,120]
[356524493,1742611849522,-996.37,0.00046849,120]
[356524494,1742611849531,-500.0,0.00046849,120]
[356524495,1742611849540,-500.0,0.00046849,120]
[356524496,1742611849550,-829.62,0.00046849,120]
[356524497,1742611849559,-500.0,0.00046849,120]
[356524498,1742611849569,-554.99665188,0.00046849,120]
[356524499,1742611849579,-500.0,0.00046849,120]
[356524500,1742611849588,-206.64767761,0.00046849,120]
[356524501,1742611849598,-500.0,0.00046849,120]
[356524502,1742611849608,-500.0,0.00046849,120]
[356524503,1742611849618,-500.0,0.00046849,120]
[356524504,1742611849627,-500.0,0.00046849,120]
[356524505,1742611849639,-540.9,0.00046849,120]
[356524506,1742611849648,-1237.27,0.00046849,120]
[356524507,1742611849658,-511.47629048,0.00046849,120]
[356524508,1742611849668,-500.0,0.00046849,120]